bitfinex-derivatives/quotes_BTCF0:USTF0_20251209
["timestamp","ask_amount","ask_price","bid_price","bid_amount"]
[1765292728657,0.0109907,90988.0,90972.0,0.00016488]
[1765292728954,0.00016488,90991.0,90981.0,0.3608]
[1765292729654,0.0109924,90973.0,90972.0,0.00016488]
[1765292729862,0.0109923,90975.0,90972.0,0.00016488]
[1765292730752,0.3608,90986.0,90972.0,0.00016488]
[1765292732062,0.010992,90977.0,90972.0,0.00016488]
[1765292732756,0.3608,90986.0,90972.0,0.00016488]
[1765292732757,0.0109923,90975.0,90972.0,0.00016488]
[1765292732956,0.0109928,90970.0,90958.0,0.3608]
[1765292733164,0.0109953,90949.0,90948.0,0.3608]
[1765292733356,0.010996,90944.0,90943.0,0.3608]
[1765292733664,0.3608,90947.0,90932.0,0.3608]
[1765292733861,0.13192737,90960.0,90932.0,0.0109973]
[1765292734062,0.0109948,90954.0,90940.0,0.13192737]
[1765292734261,0.00016488,90955.0,90937.0,0.01116168]
[1765292734460,0.0109952,90951.0,90946.0,0.3608]
[1765292734660,0.00016488,90955.0,90943.0,0.010996]
[1765292734961,0.0109948,90954.0,90952.0,0.3608]
[1765292735157,0.00016488,90955.0,90940.0,0.3608]
[1765292735364,0.0109952,90951.0,90940.0,0.3608]
[1765292735563,0.0109955,90948.0,90940.0,0.3608]
[1765292735767,0.0109951,90951.0,90940.0,0.3608]
[1765292736067,0.0109954,90949.0,90940.0,0.3608]
[1765292736255,0.00016488,90955.0,90940.0,0.3608]
[1765292736559,0.0109951,90952.0,90940.0,0.3608]
[1765292736864,0.00016488,90955.0,90940.0,0.3608]
[1765292737260,0.49272737,90970.0,90949.0,0.3608]
[1765292737459,0.3608,90970.0,90957.0,0.3608]
[1765292737660,0.0109929,90969.0,90957.0,0.3608]
[1765292737854,0.0109933,90967.0,90957.0,0.3608]
[1765292738058,0.0109938,90963.0,90957.0,0.3608]
[1765292738263,0.49272737,90970.0,90957.0,0.3608]
[1765292738264,0.00016488,90969.0,90957.0,0.3608]
[1765292738462,0.00016488,90969.0,90949.0,0.3608]
[1765292738962,0.00016488,90969.0,90959.0,0.3608]
[1765292739169,0.010993,90968.0,90959.0,0.3608]
[1765292739366,0.00016488,90969.0,90959.0,0.3608]
[1765292739663,0.0109934,90966.0,90959.0,0.3608]
[1765292739864,0.00016488,90969.0,90959.0,0.3608]
[1765292740060,0.0109933,90967.0,90959.0,0.3608]
[1765292740366,0.0109939,90962.0,90959.0,0.3608]
[1765292740956,0.0109947,90955.0,90949.0,0.3608]
[1765292741154,0.3608,90959.0,90949.0,0.3608]
[1765292741372,0.13192737,90960.0,90949.0,0.3608]
[1765292741567,0.0109951,90951.0,90949.0,0.3608]
[1765292741765,0.41903276,90962.0,90949.0,0.3608]
[1765292741966,0.0109952,90951.0,90949.0,0.3608]
[1765292742764,0.0109949,90953.0,90949.0,0.3608]
[1765292742964,0.05823276,90963.0,90949.0,0.3608]
[1765292743268,0.05823276,90974.0,90962.0,0.3608]
[1765292743466,0.0109926,90972.0,90962.0,0.3608]
[1765292743670,0.13192737,90980.0,90962.0,0.3608]
[1765292743671,0.05823276,90977.0,90962.0,0.3608]
[1765292743969,0.0109934,90965.0,90962.0,0.3608]
[1765292744168,0.0109941,90959.0,90956.0,0.00016488]
[1765292744873,0.0109944,90957.0,90956.0,0.00016488]
[1765292746267,0.3717944,90957.0,90956.0,0.00016488]
[1765292748364,0.43095315,90957.0,90956.0,0.00016488]
[1765292748673,0.05915875,90960.0,90956.0,0.00016488]
[1765292748869,0.00016488,90969.0,90957.0,0.0109944]
[1765292749174,0.00016488,90969.0,90965.0,0.3608]
[1765292750271,0.010993,90968.0,90965.0,0.3608]
[1765292750471,0.0109933,90966.0,90956.0,0.36096488]
[1765292750673,0.0109934,90965.0,90956.0,0.36096488]
[1765292750870,0.00016488,90969.0,90964.0,0.3608]
[1765292751987,0.01086199,90975.0,90964.0,0.3608]
[1765292752191,0.0109923,90974.0,90964.0,0.3608]
[1765292752393,0.05915875,90976.0,90964.0,0.3608]
[1765292752587,0.05915875,90978.0,90975.0,0.3608]
[1765292752793,0.07124828,90990.0,90975.0,0.3608]
[1765292752990,0.00109903,90990.0,90975.0,0.3608]
[1765292753289,0.00109903,90990.0,90983.0,0.3717911]
[1765292753692,0.00109903,90990.0,90983.0,0.3608]
[1765292753993,0.00016488,90992.0,90991.0,0.0109903]
[1765292754188,0.00016488,90992.0,90988.0,0.0109906]
[1765292754391,0.05915875,91008.0,90990.0,0.14291767]
[1765292754686,0.07014675,91010.0,90995.0,0.3608]
[1765292754887,0.010988,91010.0,91003.0,0.3608]
[1765292755290,0.05915875,91011.0,90997.0,0.00016488]
[1765292755685,0.13192737,91007.0,90997.0,0.00016488]
[1765292755880,0.0109892,91000.0,90997.0,0.00016488]
[1765292756288,0.07014795,91000.0,90997.0,0.00016488]
[1765292756496,0.0109892,91000.0,90997.0,0.00016488]
[1765292757584,0.05915875,91003.0,90997.0,0.00016488]
[1765292757895,0.05915875,91011.0,90997.0,0.00016488]
[1765292758078,0.3717864,91024.0,90997.0,0.00016488]
[1765292758079,0.05915875,91013.0,91003.0,0.3608]
[1765292758285,0.05926718,91016.0,91003.0,0.3608]
[1765292758682,0.0109874,91015.0,91003.0,0.3608]
[1765292759101,0.00010843,91016.0,91003.0,0.3608]
[1765292759395,0.00010843,91016.0,91011.0,0.3608]
[1765292759695,0.0109874,91015.0,91011.0,0.3608]
[1765292759888,0.01109573,91016.0,91011.0,0.3608]
[1765292760085,0.00010843,91016.0,91011.0,0.3608]
[1765292760297,0.00010843,91016.0,91013.0,0.0109875]
[1765292760496,0.3608,91035.0,91011.0,0.3608]
[1765292760698,0.0109875,91014.0,91011.0,0.3608]
[1765292760887,0.13192737,91021.0,91002.0,0.3608]
[1765292760888,0.0109888,91003.0,91002.0,0.3608]
[1765292761092,0.0109894,90998.0,90996.0,0.3608]
[1765292761288,0.0109894,90998.0,90960.0,0.13192737]
[1765292761289,0.0109894,90998.0,90960.0,0.029173]
[1765292761486,0.0109911,90984.0,90983.0,0.3608]
[1765292761687,0.14291747,90993.0,90951.0,0.029173]
[1765292761893,0.05915875,90994.0,90960.0,0.13192737]
[1765292762097,0.13192737,90990.0,90960.0,0.13192737]
[1765292762295,0.13192737,90990.0,90961.0,0.00749743]
[1765292762491,0.00016488,90985.0,90979.0,0.0109916]
[1765292762692,0.00016488,90985.0,90975.0,0.13192737]
[1765292762996,0.13192737,91010.0,90992.0,0.0109901]
[1765292762997,0.010988,91010.0,90992.0,0.0109901]
[1765292763193,0.0109858,91029.0,90976.0,0.010992]
[1765292763194,0.05915875,91016.0,91000.0,0.13192737]
[1765292763404,0.0109863,91024.0,91004.0,0.0109887]
[1765292763599,0.13192737,91020.0,91001.0,0.00733255]
[1765292763787,0.0109865,91023.0,90990.0,0.13192737]
[1765292763992,0.0109871,91018.0,91009.0,0.3608]
[1765292764299,0.3608,91023.0,91009.0,0.3608]
[1765292764502,0.3608,91034.0,91017.0,0.3608]
[1765292764692,0.3717846,91038.0,91022.0,0.3608]
[1765292764999,0.0109862,91025.0,91022.0,0.3608]
[1765292765191,0.0109866,91022.0,91016.0,0.00016488]
[1765292765497,0.010987,91018.0,91017.0,0.00733255]
[1765292765701,0.3608,91029.0,91017.0,0.00733255]
[1765292766092,0.0109858,91028.0,91017.0,0.00733255]
[1765292766400,0.0109848,91037.0,91023.0,0.3608]
[1765292766600,0.3608,91040.0,91023.0,0.3608]
[1765292766901,0.0981511,91066.0,91023.0,0.3608]
[1765292766902,0.41995875,91059.0,91035.0,0.3608]
[1765292767104,0.3608,91042.0,91038.0,0.00016478]
[1765292767301,0.0109826,91055.0,91038.0,0.00016478]
[1765292767489,0.3608,91059.0,91038.0,0.00016478]
[1765292767490,0.0109833,91050.0,91043.0,0.3608]
[1765292767692,0.0109836,91047.0,91044.0,0.00733255]
[1765292767895,0.3608,91050.0,91039.0,0.00733255]
[1765292768101,0.19322197,91060.0,91039.0,0.00733255]
[1765292768102,0.010983,91052.0,91039.0,0.00733255]
[1765292768300,0.55402197,91060.0,91039.0,0.00733255]
[1765292768501,0.010984,91043.0,91039.0,0.00733255]
[1765292768807,0.0109845,91039.0,91038.0,0.00016478]
[1765292768999,0.33069045,91046.0,91038.0,0.00016478]
[1765292769202,0.0109842,91042.0,91038.0,0.00016478]
[1765292769699,0.0109842,91042.0,91039.0,0.00733255]
[1765292769902,0.0109837,91046.0,91039.0,0.00733255]
[1765292770100,0.0109832,91050.0,91039.0,0.00733255]
[1765292770406,0.3608,91055.0,91039.0,0.00733255]
[1765292770698,0.3608,91055.0,90993.0,0.09512346]
[1765292770699,0.3608,91045.0,91006.0,0.3608]
[1765292770900,0.10983639,91049.0,90987.0,0.3608]
[1765292770901,0.0109901,90993.0,90987.0,0.3608]
[1765292771105,0.010989,91002.0,90987.0,0.3608]
[1765292771294,0.0109887,91005.0,90996.0,0.3608]
[1765292771491,0.0109898,90995.0,90987.0,0.3608]
[1765292771695,0.3608,91012.0,90987.0,0.3608]
[1765292771696,0.0109894,90999.0,90987.0,0.3608]
[1765292772104,0.00016446,91000.0,90987.0,0.3608]
[1765292772105,0.0109902,90992.0,90987.0,0.3608]
[1765292772411,0.01115376,91000.0,90987.0,0.3608]
[1765292772800,0.0109896,90997.0,90987.0,0.3608]
[1765292773002,0.00016446,91000.0,90987.0,0.3608]
[1765292773191,0.0109904,90990.0,90987.0,0.3608]
[1765292773396,0.0109899,90995.0,90987.0,0.3608]
[1765292773904,0.0109905,90989.0,90987.0,0.3608]
[1765292774405,0.0109903,90991.0,90987.0,0.3608]
[1765292774602,0.0109906,90988.0,90987.0,0.3608]
[1765292774798,0.0109905,90990.0,90987.0,0.3608]
[1765292775300,0.0109905,90990.0,90985.0,0.00733255]
[1765292775301,0.0109906,90988.0,90985.0,0.00733255]
[1765292775503,0.0109906,90988.0,90982.0,0.00015597]
[1765292775504,0.010991,90985.0,90982.0,0.00015597]
[1765292775702,0.010991,90985.0,90959.0,0.3608]
[1765292775703,0.010993,90969.0,90959.0,0.3608]
[1765292775908,0.010993,90969.0,90968.0,0.00733255]
[1765292776107,0.3608,90983.0,90968.0,0.00733255]
[1765292776308,0.3608,90983.0,90968.0,0.36813255]
[1765292776500,0.00012045,90982.0,90968.0,0.36813255]
[1765292776700,0.0109915,90981.0,90968.0,0.36813255]
[1765292777001,0.0109919,90978.0,90968.0,0.36813255]
[1765292777200,0.3608,90973.0,90950.0,0.19322197]
[1765292777402,0.3608,90963.0,90950.0,0.19322197]
[1765292777604,0.3608,90963.0,90954.0,0.0109946]
[1765292777804,8.554e-05,90962.0,90953.0,0.0109948]
[1765292778495,8.554e-05,90962.0,90954.0,0.0109947]
[1765292778698,8.554e-05,90962.0,90950.0,0.19322197]
[1765292778904,8.554e-05,90962.0,90954.0,0.0109947]
[1765292779095,8.554e-05,90962.0,90950.0,0.19322197]
[1765292779299,8.554e-05,90962.0,90954.0,0.0109947]
[1765292780009,8.554e-05,90962.0,90950.0,0.19322197]
[1765292780509,8.554e-05,90962.0,90959.0,0.010994]
[1765292780812,0.3608,90981.0,90976.0,0.010992]
[1765292781200,0.3608,90981.0,90970.0,0.19322197]
[1765292781504,0.3608,90991.0,90990.0,0.0109904]
[1765292781705,0.3608,90991.0,90980.0,0.3608]
[1765292781706,0.3608,90991.0,90981.0,0.19338685]
[1765292781909,0.3608,90991.0,90990.0,0.0109904]
[1765292782610,0.00016488,91000.0,90996.0,0.0109896]
[1765292782809,0.00016488,91000.0,90999.0,0.0109893]
[1765292783008,0.0109868,91020.0,91012.0,0.0109876]
[1765292783210,0.3608,91021.0,91012.0,0.0109876]
[1765292783513,0.3608,91021.0,91015.0,0.0109874]
[1765292783808,0.3608,91021.0,91010.0,0.19322197]
[1765292783809,0.0109868,91020.0,91010.0,0.20420997]
[1765292784104,0.3608,91030.0,90999.0,0.3717893]
[1765292784105,0.0109874,91015.0,91007.0,0.3608]
[1765292784304,0.0109866,91022.0,91013.0,0.0109875]
[1765292784907,0.0109865,91023.0,91010.0,0.0109879]
[1765292785208,0.0109864,91023.0,91010.0,0.0109879]
[1765292785710,0.0109869,91020.0,91010.0,0.20420987]
[1765292785908,0.01115109,91024.0,91013.0,0.0109876]
[1765292786100,0.00016469,91024.0,91013.0,0.0109876]
[1765292786305,0.0109868,91021.0,91010.0,0.19322197]
[1765292786505,0.3608,91017.0,91006.0,0.00016488]
[1765292786707,0.3608,91017.0,91016.0,0.0109872]
[1765292786908,0.00016469,91024.0,91023.0,0.0109864]
[1765292787110,0.00016469,91024.0,91018.0,0.0109869]
[1765292787406,0.00016469,91024.0,91014.0,0.55402197]
[1765292787608,0.00016469,91024.0,91017.0,0.010987]
[1765292788318,0.00016469,91024.0,91020.0,0.0109867]
[1765292788612,0.3608,91042.0,91023.0,0.3608]
[1765292788907,0.3608,91033.0,91023.0,0.3608]
[1765292789112,0.3608,91033.0,91020.0,0.19322197]
[1765292789113,0.3608,91025.0,91020.0,0.19322197]
[1765292789298,0.3608,91025.0,91014.0,0.3608]
[1765292789299,0.3608,91025.0,91022.0,0.0109864]
[1765292789501,0.3608,91024.0,91015.0,0.20420937]
[1765292789703,0.3608,91024.0,91015.0,0.19322197]
[1765292789903,0.3608,91042.0,91015.0,0.19322197]
[1765292789904,0.3608,91032.0,91015.0,0.19322197]
[1765292790108,0.3608,91042.0,91039.0,0.0109844]
[1765292790307,0.3608,91056.0,91035.0,0.0109849]
[1765292790508,0.3608,91056.0,91031.0,0.00016478]
[1765292790509,0.3608,91045.0,91031.0,0.00016478]
[1765292790813,0.0109849,91036.0,91031.0,0.00016478]
[1765292791008,0.0109829,91052.0,91031.0,0.00016478]
[1765292791009,0.010983,91052.0,91031.0,0.00016478]
[1765292791210,0.19322197,91060.0,91031.0,0.00016478]
[1765292791404,0.0109808,91070.0,91040.0,0.19322197]
[1765292791604,0.1091297,91089.0,91031.0,0.00016478]
[1765292791605,0.0109835,91048.0,91031.0,0.00016478]
[1765292791804,0.0109838,91045.0,91035.0,0.0109849]
[1765292792010,0.19322197,91070.0,91030.0,0.19338675]
[1765292792011,0.0109844,91040.0,91030.0,0.00016478]
[1765292792213,0.05915875,91075.0,91030.0,0.19338675]
[1765292792403,0.0109826,91055.0,91043.0,0.00016478]
[1765292792604,0.05915875,91078.0,91043.0,0.00016478]
[1765292792605,0.0109838,91045.0,91043.0,0.00016478]
[1765292792803,0.0109833,91049.0,91043.0,0.00016478]
[1765292793027,0.0109837,91046.0,91043.0,0.00016478]
[1765292793514,0.3608,91044.0,91043.0,0.00016478]
[1765292794509,0.3608,91044.0,91010.0,0.19322197]
[1765292794510,0.0109857,91030.0,91013.0,0.0109875]
[1765292794710,0.3608,91016.0,91007.0,0.3608]
[1765292794914,0.3608,91016.0,91009.0,0.010988]
[1765292795116,0.3608,91016.0,91008.0,0.0109881]
[1765292795512,0.3608,91016.0,91003.0,0.00016478]
[1765292795715,0.00016446,91021.0,91006.0,0.55402197]
[1765292795910,0.3608,91015.0,91009.0,0.010988]
[1765292796104,0.3608,91015.0,91012.0,0.0109877]
[1765292796317,0.00016446,91021.0,91020.0,0.0109868]
[1765292797008,0.3608,91032.0,91031.0,0.0109854]
[1765292797210,0.3608,91032.0,91022.0,0.19322197]
[1765292797211,0.0109835,91048.0,91038.0,0.0109845]
[1765292797414,0.3608,91050.0,91047.0,0.0109835]
[1765292797615,0.3608,91054.0,91053.0,0.0109828]
[1765292797910,0.3608,91068.0,91053.0,0.0109828]
[1765292797911,0.0109815,91064.0,91053.0,0.0109828]
[1765292798118,0.3608,91068.0,91050.0,0.19322197]
[1765292798119,0.3608,91059.0,91050.0,0.19322197]
[1765292798318,0.3608,91059.0,91049.0,0.3608]
[1765292798817,0.3608,91051.0,91045.0,0.0109838]
[1765292799113,0.3608,91051.0,91044.0,0.00016478]
[1765292799503,0.0109831,91050.0,91044.0,0.00016478]
[1765292799708,0.3608,91059.0,91044.0,0.00016478]
[1765292799919,0.3608,91059.0,91049.0,0.19322197]
[1765292800510,0.3608,91059.0,91056.0,0.0109824]
[1765292800816,0.0109803,91074.0,91055.0,0.3608]
[1765292801017,0.3608,91069.0,91055.0,0.36096478]
[1765292801311,0.0109817,91063.0,91055.0,0.36096478]
[1765292801515,0.010981,91068.0,91055.0,0.36096478]
[1765292801710,0.010981,91068.0,91056.0,0.0109824]
[1765292802107,0.010981,91068.0,91055.0,0.36096478]
[1765292802108,0.3608,91069.0,91055.0,0.36096478]
[1765292802305,0.3608,91060.0,91055.0,0.00016478]
[1765292802617,0.3717821,91059.0,91055.0,0.00016478]
[1765292803121,0.3608,91056.0,91055.0,0.00016478]
[1765292803414,0.7216,91056.0,91055.0,0.00016478]
[1765292804918,0.7325824,91056.0,91055.0,0.00016478]
[1765292805119,0.7216,91056.0,91055.0,0.00016478]
[1765292805712,0.3608,91056.0,91055.0,0.00016478]
[1765292805919,0.3608,91062.0,91059.0,0.0109819]
[1765292806219,0.3608,91073.0,91066.0,0.0109811]
[1765292806422,0.3608,91083.0,91068.0,0.3608]
[1765292806620,0.3608,91083.0,91075.0,0.0109801]
[1765292807311,0.3608,91083.0,91070.0,0.19322197]
[1765292807512,0.3608,91083.0,91075.0,0.01098]
[1765292807713,0.3717793,91083.0,91075.0,0.01098]
[1765292808012,0.3608,91083.0,91068.0,0.3608]
[1765292808216,0.0109807,91071.0,91068.0,0.3608]
[1765292808514,0.010981,91068.0,91059.0,0.010982]
[1765292808719,0.0109823,91058.0,91041.0,0.3717841]
[1765292808916,0.0109823,91058.0,91041.0,0.3608]
[1765292809113,0.0109823,91058.0,91044.0,0.0109838]
[1765292809422,0.0109823,91058.0,91046.0,0.0109835]
[1765292809616,0.0109823,91058.0,91041.0,0.3608]
[1765292809917,0.0109823,91058.0,91041.0,0.0109842]
[1765292809918,0.3608,91056.0,91041.0,0.0109842]
[1765292810419,0.3608,91056.0,91040.0,0.19322197]
[1765292810625,0.3608,91056.0,91042.0,0.3608]
[1765292811126,0.3608,91056.0,91040.0,0.19322197]
[1765292811319,0.3608,91072.0,91040.0,0.19322197]
[1765292811320,0.3608,91060.0,91058.0,0.0109821]
[1765292811528,0.3608,91060.0,91052.0,0.3608]
[1765292811727,0.3608,91060.0,91058.0,0.0109821]
[1765292811910,0.0109815,91065.0,91053.0,0.0109827]
[1765292812115,0.3717817,91063.0,91053.0,0.0109827]
[1765292812315,0.3608,91063.0,91050.0,0.55402197]
[1765292812511,0.3608,91072.0,91070.0,0.0109807]
[1765292812714,0.3608,91072.0,91067.0,0.010981]
[1765292812927,0.3608,91072.0,91069.0,0.0109808]
[1765292813529,0.3608,91086.0,91084.0,0.010979]
[1765292813928,0.010977,91101.0,91089.0,0.0109784]
[1765292814228,0.0109778,91094.0,91082.0,0.3717793]
[1765292814521,0.0109782,91091.0,91084.0,0.0109789]
[1765292814832,0.01119757,91095.0,91084.0,0.0109789]
[1765292815131,0.3608,91093.0,91084.0,0.0109789]
[1765292815318,0.0208981,91092.0,91081.0,0.0109794]
[1765292815719,0.00992,91092.0,91090.0,0.0109783]
[1765292816333,0.3608,91104.0,91086.0,0.3608]
[1765292816627,0.0109749,91119.0,91109.0,0.0109759]
[1765292816840,0.0109732,91133.0,91112.0,0.0109756]
[1765292816841,0.0109748,91120.0,91112.0,0.0109756]
[1765292817133,0.0109748,91120.0,91111.0,0.0109758]
[1765292817436,0.0109748,91120.0,91105.0,0.00016469]
[1765292817437,0.0109763,91107.0,91105.0,0.00016469]
[1765292818128,0.0109779,91094.0,91079.0,0.0109796]
[1765292818320,0.3608,91086.0,91077.0,0.0109799]
[1765292818524,0.3608,91086.0,91074.0,0.0109802]
[1765292818717,0.3608,91086.0,91081.0,0.0109794]
[1765292818916,0.3717778,91095.0,91070.0,0.19322197]
[1765292818917,0.3717778,91095.0,91083.0,0.0109791]
[1765292819122,0.3717778,91095.0,91076.0,0.3608]
[1765292819123,0.0109781,91092.0,91081.0,0.0109794]
[1765292819320,0.3608,91095.0,91081.0,0.0109794]
[1765292819521,0.010978,91093.0,91080.0,0.00016469]
[1765292819722,0.3608,91087.0,91081.0,0.0109794]
[1765292819927,0.3608,91087.0,91080.0,0.00016469]
[1765292820127,0.0109793,91083.0,91080.0,0.00016469]
[1765292820330,0.3608,91086.0,91080.0,0.00016469]
[1765292820834,0.0109792,91083.0,91080.0,0.00016469]
[1765292821224,0.3608,91086.0,91083.0,0.0109791]
[1765292821426,0.00016438,91098.0,91095.0,0.0109776]
[1765292822536,0.00016438,91098.0,91090.0,0.3608]
[1765292822830,0.00016438,91098.0,91095.0,0.0109777]
[1765292823229,0.3608,91126.0,91116.0,0.19322197]
[1765292823435,0.0109729,91136.0,91127.0,0.0109738]
[1765292823633,0.0109729,91136.0,91126.0,0.0109739]
[1765292823935,0.0109722,91141.0,91126.0,0.19322197]
[1765292824141,0.3608,91144.0,91138.0,0.0109725]
[1765292824323,0.3608,91144.0,91134.0,0.3608]
[1765292824324,0.3608,91156.0,91142.0,0.010972]
[1765292824523,0.3608,91156.0,91134.0,0.55402197]
[1765292824524,0.0109728,91136.0,91134.0,0.3608]
[1765292824738,0.3608,91135.0,91112.0,0.3608]
[1765292824924,0.0109739,91127.0,91126.0,0.00016459]
[1765292825125,0.0109667,91187.0,91117.0,0.00016459]
[1765292825126,0.0109738,91128.0,91117.0,0.00016459]
[1765292825431,0.0109707,91154.0,91120.0,0.19322197]
[1765292825634,0.3608,91126.0,91120.0,0.19322197]
[1765292825831,0.3608,91140.0,91128.0,0.0109737]
[1765292826035,0.3608,91140.0,91122.0,0.3608]
[1765292826036,0.3608,91138.0,91125.0,0.00016459]
[1765292826437,0.0109727,91137.0,91125.0,0.00016459]
[1765292826630,0.3608,91130.0,91125.0,0.00016459]
[1765292827038,0.0109736,91129.0,91125.0,0.00016459]
[1765292827337,0.0109755,91114.0,91100.0,0.13144204]
[1765292827536,0.3608,91106.0,91100.0,0.13144204]
[1765292827735,0.3608,91106.0,91090.0,0.13144204]
[1765292827944,0.3608,91098.0,91090.0,0.13144204]
[1765292828535,0.0109775,91097.0,91085.0,0.00016459]
[1765292828843,0.3608,91090.0,91085.0,0.00016459]
[1765292829543,0.0109784,91089.0,91085.0,0.00016459]
[1765292829734,0.3608,91090.0,91085.0,0.00016459]
[1765292830433,0.3608,91090.0,91086.0,0.0109788]
[1765292830834,0.3608,91090.0,91085.0,0.00016459]
[1765292831245,0.3608,91090.0,91086.0,0.0109788]
[1765292831537,0.00016426,91103.0,91096.0,0.0109776]
[1765292831737,0.00016426,91103.0,91093.0,0.13144204]
[1765292831945,0.00016426,91103.0,91099.0,0.0109772]
[1765292832136,0.00016426,91103.0,91101.0,0.010977]
[1765292832731,0.3608,91126.0,91118.0,0.0109749]
[1765292832940,0.0109741,91125.0,91116.0,0.13144204]
[1765292833136,0.3608,91126.0,91120.0,0.0109746]
[1765292833440,0.3608,91139.0,91115.0,0.13144204]
[1765292833645,0.3608,91131.0,91129.0,0.13144204]
[1765292833847,0.3608,91131.0,91120.0,0.13144204]
[1765292834048,0.3608,91131.0,91121.0,0.00016459]
[1765292834236,0.3608,91139.0,91131.0,0.0109733]
[1765292834441,0.3608,91139.0,91134.0,0.010973]
[1765292834743,0.3608,91139.0,91130.0,0.0109734]
[1765292834947,0.0109729,91135.0,91124.0,0.3608]
[1765292835243,0.3608,91139.0,91130.0,0.0109735]
[1765292835449,0.3608,91139.0,91136.0,0.0109728]
[1765292836044,0.3608,91139.0,91133.0,0.0109731]
[1765292836450,0.3608,91139.0,91129.0,0.0109736]
[1765292836749,0.3717724,91139.0,91129.0,0.13144204]
[1765292836935,0.3717724,91139.0,91130.0,0.0109735]
[1765292837343,0.3608,91139.0,91129.0,0.13144204]
[1765292837546,0.3717711,91150.0,91129.0,0.13144204]
[1765292837747,0.3608,91150.0,91140.0,0.13144204]
[1765292838248,0.0109712,91149.0,91140.0,0.13144204]
[1765292838845,0.3608,91150.0,91139.0,0.13144204]
[1765292839156,0.3608,91150.0,91143.0,0.0109719]
[1765292839637,0.3608,91150.0,91139.0,0.13144204]
[1765292839840,0.0109712,91149.0,91139.0,0.14241444]
[1765292840038,0.0109712,91149.0,91134.0,0.3608]
[1765292840039,0.3608,91150.0,91134.0,0.3608]
[1765292840242,0.3608,91142.0,91130.0,0.13144204]
[1765292840442,0.0109722,91141.0,91130.0,0.14241544]
[1765292840641,0.3608,91142.0,91134.0,0.010973]
[1765292840843,0.3608,91142.0,91133.0,0.010973]
[1765292841153,0.3608,91150.0,91147.0,0.0109714]
[1765292841345,0.05915875,91172.0,91168.0,0.0109689]
[1765292841346,0.3608,91172.0,91168.0,0.0109689]
[1765292841657,0.3608,91182.0,91173.0,0.0109682]
[1765292841841,0.3608,91182.0,91179.0,0.0109675]
[1765292842242,0.3608,91182.0,91172.0,0.13144204]
[1765292842243,0.3608,91201.0,91176.0,0.3608]
[1765292842445,0.3608,91201.0,91186.0,0.3608]
[1765292842753,0.3608,91188.0,91179.0,0.00016449]
[1765292842951,0.0109675,91180.0,91179.0,0.00016449]
[1765292843253,0.7325675,91180.0,91179.0,0.00016449]
[1765292843439,0.4,91180.0,91150.0,0.13144204]
[1765292843645,0.010969,91168.0,91150.0,0.13144204]
[1765292843952,0.07860129,91207.0,91128.0,0.04987104]
[1765292843953,0.0109698,91162.0,91143.0,0.0109719]
[1765292844140,0.0109705,91156.0,91140.0,0.13144204]
[1765292844345,0.00016415,91157.0,91140.0,0.13144204]
[1765292844551,0.0109721,91142.0,91139.0,0.00016449]
[1765292844750,0.010972,91143.0,91139.0,0.00016449]
[1765292844947,0.3608,91142.0,91139.0,0.00016449]
[1765292846345,0.3608,91150.0,91139.0,0.00016449]
[1765292846546,0.3608,91150.0,91140.0,0.13144204]
[1765292846851,0.3608,91142.0,91140.0,0.13144204]
[1765292847053,0.00016415,91157.0,91140.0,0.0109723]
[1765292847350,0.0109717,91145.0,91139.0,0.00016449]
[1765292847855,0.0109721,91142.0,91139.0,0.00016449]
[1765292848858,0.3717716,91146.0,91139.0,0.00016449]
[1765292849551,0.3608,91146.0,91139.0,0.00016449]
[1765292849748,0.3608,91146.0,91139.0,0.01113689]
[1765292849948,0.3608,91146.0,91139.0,0.00016449]
[1765292850346,0.0109721,91143.0,91139.0,0.00016449]
[1765292850547,0.3608,91140.0,91139.0,0.00016449]
[1765292850752,0.3608,91150.0,91146.0,0.0109715]
[1765292850957,0.00016415,91157.0,91154.0,0.0109706]
[1765292851454,0.13144204,91190.0,91154.0,0.0109706]
[1765292851455,0.3608,91177.0,91154.0,0.0109706]
[1765292851657,0.3608,91186.0,91173.0,0.0109683]
[1765292851849,0.3608,91186.0,91167.0,0.13144204]
[1765292852155,0.3608,91168.0,91141.0,0.0109722]
[1765292852347,0.3608,91168.0,91140.0,0.13144204]
[1765292852348,0.3608,91148.0,91145.0,0.00016458]
[1765292852547,0.0109691,91167.0,91145.0,0.00016458]
[1765292852548,0.3608,91150.0,91145.0,0.00016458]
[1765292852948,0.3608,91160.0,91148.0,0.0109713]
[1765292853160,0.0109688,91170.0,91150.0,0.49224204]
[1765292853453,0.20156719,91190.0,91151.0,0.010971]
[1765292853454,0.3608,91158.0,91151.0,0.010971]
[1765292853956,0.3608,91156.0,91150.0,0.13144204]
[1765292854356,0.3608,91156.0,91146.0,0.13144204]
[1765292854749,0.0109713,91149.0,91145.0,0.00016458]
[1765292855059,0.3608,91148.0,91145.0,0.00016458]
[1765292855360,0.0109715,91147.0,91145.0,0.00016458]
[1765292857360,0.3608,91148.0,91145.0,0.00016458]
[1765292857561,0.3608,91148.0,91146.0,0.0109716]
[1765292857753,0.3608,91156.0,91145.0,0.00016458]
[1765292857954,0.0109709,91152.0,91145.0,0.00016458]
[1765292858265,0.3608,91146.0,91145.0,0.00016458]
[1765292859666,0.0109716,91147.0,91145.0,0.00016458]
[1765292859865,0.3608,91146.0,91145.0,0.00016458]
[1765292860363,0.3608,91146.0,91121.0,0.3608]
[1765292860552,0.3608,91134.0,91122.0,0.02869861]
[1765292860756,0.3608,91134.0,91121.0,0.3608]
[1765292860956,0.3717731,91134.0,91122.0,0.0109745]
[1765292861161,0.0109719,91143.0,91121.0,0.3608]
[1765292861471,0.3608,91133.0,91130.0,0.13144204]
[1765292861656,0.3608,91133.0,91123.0,0.13160662]
[1765292862052,0.3608,91133.0,91124.0,0.0109742]
[1765292862272,0.3608,91133.0,91123.0,0.13160662]
[1765292862459,0.3608,91133.0,91126.0,0.0109739]
[1765292862859,0.3608,91133.0,91123.0,0.13160662]
[1765292862860,0.3717732,91133.0,91123.0,0.14258092]
[1765292863070,0.3608,91133.0,91123.0,0.00016458]
[1765292863254,0.3608,91133.0,91126.0,0.010974]
[1765292863457,0.00016458,91141.0,91135.0,0.0109729]
[1765292863652,0.00016458,91141.0,91136.0,0.0109727]
[1765292863862,0.00016458,91141.0,91135.0,0.0109729]
[1765292864066,0.3608,91138.0,91131.0,0.0109733]
[1765292864361,0.3608,91138.0,91130.0,0.13144204]
[1765292864564,0.3608,91138.0,91132.0,0.0109733]
[1765292864865,0.0109727,91137.0,91129.0,0.3608]